fUST/lending_fUST_20240120
["ID","MTS","AMOUNT","RATE_DAILY","PERIOD"]
[312248691,1705708243448,-15465.30303422,0.00018603,2]
[312248692,1705708243458,-30322.03825364,0.0003625,7]
[312248693,1705708243467,-38022.66674164,0.00036281,7]
[312248694,1705708243483,-646.8602,0.00036281,7]
[312248695,1705708243495,-499.52734062,0.00036281,7]
[312248727,1705708246035,-594.84589351,0.00018602,2]
[312248728,1705708246046,-13292.29,0.00027387,3]
[312248729,1705708246055,-167.33697266,0.00036281,7]
[312248730,1705708246066,-1324.18,0.00036281,7]
[312248770,1705708459149,268.89985055,0.0001,2]
[312248771,1705708464951,2710.03273659,0.0001,2]
[312248772,1705708523682,4040.05030934,0.0001,2]
[312248773,1705708537087,154.86062544,0.0001,2]
[312248774,1705708541683,4040.05030934,0.0001,2]
[312248775,1705708553100,229.98970099,0.0001,2]
[312248776,1705708557692,1449.4120486,0.0001,2]
[312248777,1705708662202,154.86062544,9e-05,2]
[312248779,1705708862470,24900.0,0.00015672,2]
[312248780,1705708926945,56238.32819769,0.00016,2]
[312248781,1705709082939,201406.41225439,0.00016,2]
[312248782,1705709120245,1583.5799217,0.0001569,2]
[312248783,1705709141808,534.8672697,0.00016,2]
[312248784,1705709157813,534.8672697,0.00016,2]
[312248785,1705709162724,198.7007568,0.00015559,2]
[312248786,1705709177821,533.71854255,0.00015559,2]
[312248787,1705709228669,3482.62955366,0.00016215,2]
[312248788,1705709233287,151.48485454,0.00016134,2]
[312248789,1705709244664,3479.70615354,0.00016215,2]
[312248790,1705709253093,-262.19709632,0.00016542,2]
[312248791,1705709253117,-259.90986943,0.00016542,2]
[312248792,1705709260788,505.8919986,0.00015545,2]
[312248793,1705709287404,753.38755,0.00015542,2]
[312248794,1705709343807,24900.0,0.00015532,2]
[312248795,1705709358179,-2813.43161407,0.00016526,2]
[312248796,1705709358199,-160.93382702,0.00016526,2]
[312248797,1705709358219,-154.86062544,0.00016526,2]
[312248798,1705709358239,-711.43114331,0.00016526,2]
[312248799,1705709358260,-7999.96196843,0.00016526,2]
[312248800,1705709358280,-322.95530787,0.00016526,2]
[312248801,1705709358300,-760.31790163,0.00016526,2]
[312248802,1705709358319,-178.82165208,0.00016527,2]
[312248803,1705709358339,-1740.08077845,0.00016527,2]
[312248804,1705709358358,-166.90570443,0.00016527,2]
[312248805,1705709358378,-2001.52604925,0.00016527,2]
[312248806,1705709358397,-323.39599469,0.00016527,2]
[312248807,1705709358416,-2038.05199526,0.00016527,2]
[312248808,1705709358436,-178.65716453,0.00016528,2]
[312248809,1705709358456,-154.86062544,0.00016528,2]
[312248810,1705709358476,-154.86062544,0.00016528,2]
[312248811,1705709358497,-687.60373162,0.00016528,2]
[312248812,1705709358517,-191.31512244,0.00016528,2]
[312248813,1705709358536,-154.86062544,0.00016528,2]
[312248814,1705709358556,-6715.84758447,0.00016528,2]
[312248815,1705709361113,-1241.8968664,0.00016525,2]
[312248816,1705709361136,-242.99577859,0.00016525,2]
[312248817,1705709361157,-1418.91986757,0.00016528,2]
[312248818,1705709361532,-1000.0,0.00016528,2]
[312248819,1705709365073,-154.86062544,0.00016524,2]
[312248820,1705709365093,-1695.85801484,0.00016524,2]
[312248821,1705709365112,-301.77611122,0.00016525,2]
[312248822,1705709365133,-213.31905426,0.00016525,2]
[312248823,1705709365158,-10722.28780841,0.00016528,2]
[312248824,1705709365180,-588.02510206,0.00016529,2]
[312248825,1705709365202,-246.07285378,0.00016529,2]
[312248826,1705709365223,-7956.19039627,0.00016529,2]
[312248827,1705709365244,-13713.11572984,0.00016529,2]
[312248828,1705709365265,-272.42186695,0.00016529,2]
[312248829,1705709365286,-526.47495194,0.0001653,2]
[312248830,1705709365306,-154.86062544,0.0001653,2]
[312248831,1705709365325,-154.86062544,0.0001653,2]
[312248832,1705709365345,-260.99609825,0.0001653,2]
[312248833,1705709365365,-875.93915164,0.0001653,2]
[312248834,1705709365385,-164.57024435,0.0001653,2]
[312248835,1705709365405,-154.86062544,0.0001653,2]
[312248836,1705709365428,-2033.48363052,0.0001653,2]
[312248837,1705709365450,-594.84589351,0.0001653,2]
[312248838,1705709365469,-154.86062544,0.0001653,2]
[312248839,1705709365621,-163.04169151,0.00016531,2]
[312248840,1705709365645,-21675.6082244,0.00016531,2]
[312248841,1705709365670,-154.86062544,0.00016531,2]
[312248842,1705709365689,-262.19709632,0.00016531,2]
[312248843,1705709365710,-977.54301686,0.00016531,2]
[312248844,1705709365730,-154.86062544,0.00016531,2]
[312248845,1705709365753,-679.75558308,0.00016531,2]
[312248846,1705709365774,-1252.74537918,0.00016531,2]
[312248847,1705709365795,-1992.49793916,0.00016531,2]
[312248848,1705709365817,-9441.6477235,0.00016531,2]
[312248849,1705709373262,760.31790163,0.00014874,2]
[312248850,1705709380383,21675.6082244,0.00016362,2]
[312248851,1705709386187,977.54301686,0.00014875,2]
[312248852,1705709389259,760.65892112,0.00014868,2]
[312248853,1705709391340,12878.64696907,0.00016345,2]
[312248854,1705709394392,21675.6082244,0.00016354,2]
[312248856,1705709406191,975.21260377,0.00014871,2]
[312248857,1705709416387,3824.16351164,0.00016358,2]
[312248933,1705709432090,-242.99577859,0.00016442,2]
[312248935,1705709432100,-160.93382702,0.00016442,2]
[312248937,1705709432110,-58.26540777,0.00016442,2]
[312248977,1705709432385,-1943.26064148,0.00016442,2]
[312248980,1705709432399,-454.37196662,0.00016442,2]
[312248981,1705709432415,-7545.59000181,0.00016442,2]
[312248982,1705709432424,-156.87167711,0.00016442,2]
[312248983,1705709432438,-154.86062544,0.00016443,2]
[312248984,1705709432450,-1602.24051039,0.00016443,2]
[312248985,1705709432463,-1468.00454349,0.00016443,2]
[312248986,1705709432475,-3744.1172956,0.00016443,2]
[312248987,1705709432486,-260.72897054,0.00016443,2]
[312248988,1705709432499,-166.58308548,0.00016443,2]
[312248989,1705709432511,-239.16358008,0.00016443,2]
[312248990,1705709432524,-154.86062544,0.00016443,2]
[312248991,1705709432537,-644.05484588,0.00016444,2]
[312248992,1705709432550,-8757.15684933,0.0001652,2]
[312248993,1705709432563,-13881.91503045,0.0001652,2]
[312248994,1705709432576,-5809.18246021,0.0001652,2]
[312248995,1705709432586,-13713.11572984,0.0001652,2]
[312248996,1705709432597,-588.02510206,0.00016521,2]
[312248997,1705709432610,-15906.57674273,0.00016521,2]
[312248998,1705709432622,-1578.52419014,0.00016522,2]
[312248999,1705709432633,-154.86062544,0.00016522,2]
[312249001,1705709432645,-15212.39198366,0.00016522,2]
[312249004,1705709432656,-175.13584081,0.00016523,2]
[312249006,1705709432667,-154.86062544,0.00016523,2]
[312249008,1705709432678,-1293.1158294,0.00016523,2]
[312249010,1705709432693,-12049.46176446,0.00016525,2]
[312249745,1705709439844,-154.86062544,0.00016441,2]
[312249747,1705709439855,-679.75558308,0.00016441,2]
[312249749,1705709439864,-297.58594734,0.00016441,2]
[312249752,1705709439879,-390.01778428,0.00016441,2]
[312249754,1705709439889,-154.86062544,0.00016441,2]
[312249768,1705709440009,-18895.08975883,0.00016441,2]
[312249770,1705709440020,-191.31512244,0.00016441,2]
[312249772,1705709440030,-19857.05526045,0.00016442,2]
[312249774,1705709440040,-903.13044819,0.00016442,2]
[312249776,1705709440049,-199.14321435,0.00016442,2]
[312249778,1705709440059,-526.47495194,0.00016442,2]
[312249780,1705709440068,-1241.8968664,0.00016442,2]
[312249782,1705709440077,-875.93915164,0.00016442,2]
[312249784,1705709440086,-154.86062544,0.00016442,2]
[312249786,1705709440095,-1438.24066391,0.00016442,2]
[312249789,1705709440105,-20864.2178903,0.00016442,2]
[312249790,1705709440115,-154.86062544,0.00016442,2]
[312249792,1705709440124,-711.43114331,0.00016442,2]
[312249794,1705709440133,-329.3649862,0.00016442,2]
[312249796,1705709440143,-154.86062544,0.00016442,2]
[312249798,1705709440152,-166.90570443,0.00016442,2]
[312249800,1705709440160,-72811.37484319,0.00016525,2]
[312249802,1705709440170,-261.55299371,0.00016526,2]
[312249805,1705709440179,-2703.02323388,0.00016527,2]
[312249807,1705709440189,-154.86062544,0.00016527,2]
[312249809,1705709440198,-2813.43161407,0.00016527,2]
[312249812,1705709440207,-154.86062544,0.00016527,2]
[312249814,1705709440216,-301.55365498,0.00016527,2]
[312249816,1705709440226,-36946.17544842,0.00016527,2]
[312249818,1705709440235,-1255.13556171,0.00016528,2]
[312249821,1705709440244,-1740.08077845,0.00016528,2]
[312249824,1705709440253,-164.57024435,0.00016528,2]
[312249827,1705709440263,-154.98450155,0.00016528,2]
[312249829,1705709440272,-259.93145126,0.00016528,2]
[312249831,1705709440281,-322.80370988,0.00016528,2]
[312249833,1705709440290,-1235.34700637,0.00016528,2]
[312249835,1705709440299,-163.04169151,0.00016528,2]
[312249837,1705709440308,-272.22373337,0.00016528,2]
[312249839,1705709440317,-262.19709632,0.00016528,2]
[312249841,1705709440325,-1251.80983866,0.00016528,2]
[312249842,1705709440334,-260.99609825,0.00016528,2]
[312249844,1705709440343,-2839.71652783,0.00016528,2]
[312249846,1705709440352,-1992.49793916,0.00016528,2]
[312249848,1705709440361,-154.92253873,0.00016528,2]
[312249850,1705709440369,-322.95530787,0.00016529,2]
[312249852,1705709440380,-1129.27475511,0.0001653,2]
[312249855,1705709440391,-178.6817697,0.0001653,2]
[312249856,1705709440400,-253.87912407,0.00016536,2]
[312249858,1705709440409,-81144.18594681,0.00016539,2]
[312249860,1705709440418,-154.98450155,0.00016546,2]
[312249863,1705709440427,-561.15323628,0.00016546,2]
[312249865,1705709440436,-245.2106015,0.00016578,2]
[312249867,1705709440445,-676.96759119,0.00016668,2]
[312249869,1705709440454,-2102.11817883,0.00016668,2]
[312249871,1705709440464,-246.52425823,0.00016676,2]
[312249873,1705709440473,-170.43506579,0.00016676,2]
[312249875,1705709440481,-2072.61065155,0.00016683,2]
[312249877,1705709440490,-873.86173983,0.00017235,2]
[312249879,1705709440499,-200.0,0.00017383,2]
[312249881,1705709440507,-155.34362049,0.00017678,2]
[312249883,1705709440518,-178.87513889,0.00017678,2]
[312249885,1705709440527,-156.28,0.00017678,2]
[312249887,1705709440536,-258.76819595,0.00017678,2]
[312249889,1705709440544,-266.64256563,0.00017678,2]
[312249891,1705709440553,-154.87609912,0.00017678,2]
[312249892,1705709440562,-264.03826997,0.00017678,2]
[312249894,1705709440571,-155.02131266,0.00017678,2]
[312249896,1705709440580,-164.65058158,0.00017682,2]
[312249898,1705709440589,-226.32093431,0.00017686,2]
[312249900,1705709440597,-375.16526378,0.00017698,2]
[312249902,1705709440607,-10528.8773707,0.00017898,2]
[312249904,1705709440616,-3572.64977096,0.000189,2]
[312249906,1705709440625,-1581.42371087,0.00019,2]
[312249908,1705709440635,-280.0,0.00019122,2]
[312249910,1705709440643,-168.394691,0.00019178,2]
[312249912,1705709440653,-184.83171,0.00019178,2]
[312249914,1705709440662,-1113.91161195,0.000195,2]
[312249916,1705709440672,-872.05925488,0.000199,2]
[312249918,1705709440683,-678.20873721,0.0002,2]
[312249920,1705709440692,-40993.0,0.0002,2]
[312249922,1705709440701,-1197.20181474,0.0002,2]
[312249924,1705709440710,-154.86062544,0.0002,2]
[312249926,1705709440720,-849.76694483,0.0002,2]
[312249928,1705709440729,-154.86062544,0.0002,2]
[312249930,1705709440738,-219.93064841,0.0002,2]
[312249932,1705709440748,-232.86268792,0.00021,2]
[312249935,1705709440759,-14841.24089168,0.00021,2]
[312249937,1705709440770,-194.24479466,0.00021,2]
[312249938,1705709440779,-1688.76865622,0.00021,2]
[312249941,1705709440790,-1763.93265691,0.00021,2]
[312249943,1705709440799,-327.3065169,0.00021,2]
[312249944,1705709440808,-391.0,0.00021034,2]
[312249947,1705709440817,-166.666666,0.00021918,2]
[312249949,1705709440827,-293.28439443,0.00022,4]
[312249951,1705709440836,-3963.07176261,0.00022,2]
[312249953,1705709440845,-425.69649895,0.00022,2]
[312249954,1705709440854,-872.05925487,0.0002215,2]
[312249957,1705709440864,-10280.62520049,0.00022221,2]
[312249959,1705709440873,-166.666666,0.00022431,2]
[312249961,1705709440881,-823.86653966,0.000227,2]
[312249963,1705709440891,-166.666666,0.00022944,2]
[312249965,1705709440900,-200.0,0.00023137,7]
[312249967,1705709440909,-348.0,0.00023137,7]
[312249969,1705709440918,-500.0,0.00023288,2]
[312249971,1705709440927,-500.0,0.00023288,2]
[312249973,1705709440937,-500.0,0.00023288,2]
[312249975,1705709440946,-500.0,0.00023288,2]
[312249977,1705709440955,-500.0,0.00023288,2]
[312249978,1705709440965,-294.72581559,0.00023288,2]
[312249980,1705709440975,-200.0,0.00023288,2]
[312249983,1705709440984,-500.0,0.00023288,2]
[312249985,1705709440998,-500.0,0.00023288,2]
[312249987,1705709441007,-500.0,0.00023288,2]
[312249989,1705709441017,-500.0,0.00023288,2]
[312249991,1705709441026,-500.0,0.00023288,2]
[312249993,1705709441036,-500.0,0.00023288,2]
[312249995,1705709441045,-500.0,0.00023288,2]
[312249997,1705709441054,-500.0,0.00023288,2]
[312249998,1705709441063,-500.0,0.00023288,2]
[312250001,1705709441073,-500.0,0.00023288,2]
[312250003,1705709441082,-753.38755,0.00023313,2]
[312250005,1705709441092,-166.666666,0.00023456,2]
[312250006,1705709441101,-3572.64977096,0.000239,2]
[312250008,1705709441110,-166.666666,0.00023969,2]
[312250010,1705709441120,-4011.58774012,0.00024,2]
[312250013,1705709441130,-872.05925487,0.000244,2]
[312250014,1705709441139,-166.666666,0.00024482,2]
[312250017,1705709441149,-1000.0,0.00024657,2]
[312250019,1705709441159,-829.1810316,0.00024657,2]
[312250020,1705709441168,-500.0,0.00024657,2]
[312250023,1705709441177,-500.0,0.00024657,2]
[312250025,1705709441186,-500.0,0.00024657,2]
[312250027,1705709441196,-500.0,0.00024657,2]
[312250028,1705709441205,-500.0,0.00024657,2]
[312250031,1705709441214,-500.0,0.00024657,2]
[312250033,1705709441223,-500.0,0.00024657,2]
[312250035,1705709441232,-500.0,0.00024657,2]
[312250037,1705709441242,-500.0,0.00024657,2]
[312250039,1705709441251,-500.0,0.00024657,2]
[312250041,1705709441260,-500.0,0.00024657,2]
[312250043,1705709441270,-500.0,0.00024657,2]
[312250045,1705709441279,-500.0,0.00024657,2]
[312250047,1705709441288,-500.0,0.00024657,2]
[312250049,1705709441298,-500.0,0.00024657,2]
[312250051,1705709441307,-500.0,0.00024657,2]
[312250053,1705709441316,-500.0,0.00024657,2]
[312250055,1705709441325,-316.39436209,0.00024657,2]
[312250057,1705709441334,-498.00832139,0.0002495,5]
[312250059,1705709441344,-701.41982279,0.00025,2]
[312250061,1705709441353,-4417.39589861,0.00025,2]
[312250063,1705709441362,-1001.68368402,0.00025,2]
[312250065,1705709441371,-4719.78899734,0.00025,2]
[312250067,1705709441381,-193.00215354,0.00025,2]
[312250068,1705709441390,-155.058075,0.00025,2]
[312250069,1705709441399,-1045.65136347,0.00025,2]
[312250070,1705709441407,-2093.74877759,0.00025297,2]
[312250071,1705709441417,-200.0,0.00025451,7]
[312250072,1705709441425,-200.0,0.00025451,7]
[312250073,1705709441434,-368.0,0.00025451,7]
[312250074,1705709441443,-3910.88074803,0.00026,2]
[312250075,1705709441452,-640.44611211,0.000264,2]
[312250076,1705709441461,-872.05925487,0.0002665,2]
[312250077,1705709441470,-260.0,0.00027,2]
[312250078,1705709441479,-648.51545401,0.00027396,2]
[312250079,1705709441487,-410.83858145,0.00027396,4]
[312250080,1705709441496,-475.01653594,0.00027396,4]
[312250081,1705709441505,-382.67178203,0.00027396,4]
[312250082,1705709441514,-491.69218414,0.00027396,4]
[312250083,1705709441523,-433.78102858,0.00027396,4]
[312250084,1705709441532,-155.0,0.00027397,2]
[312250085,1705709441541,-16925.51,0.00027397,3]
[312250087,1705709441551,-14104.6,0.00027397,3]
[312250089,1705709441560,-11753.83,0.00027397,3]
[312250091,1705709441569,-621.02230561,0.0002772,2]
[312250093,1705709441578,-200.0,0.00027996,15]
[312250095,1705709441587,-200.0,0.00027996,15]
[312250097,1705709441596,-200.0,0.00027996,15]
[312250099,1705709441604,-200.0,0.00027996,15]
[312250101,1705709441614,-275.0,0.00027996,15]
[312250103,1705709441623,-154.86062544,0.00028,10]
[312250105,1705709441633,-290.08228321,0.00028,2]
[312250107,1705709441642,-155.06823002,0.00028701,3]
[312250109,1705709441652,-11772.26462134,0.00028749,2]
[312250111,1705709441661,-155.0,0.00028767,2]
[312250113,1705709441670,-716.03,0.00028799,2]
[312250115,1705709441680,-716.03,0.00028799,2]
[312250117,1705709441690,-716.03,0.00028799,2]
[312250119,1705709441700,-716.03,0.00028799,2]
[312250120,1705709441708,-716.03,0.00028799,2]
[312250123,1705709441718,-716.03,0.00028799,2]
[312250125,1705709441729,-716.03,0.00028799,2]
[312250127,1705709441740,-716.03,0.00028799,2]
[312250128,1705709441750,-716.03,0.00028799,2]
[312250130,1705709441759,-716.03,0.00028799,2]
[312250132,1705709441770,-438240.07649795,0.000288,2]
[312250134,1705709441780,-24583.52528654,0.000288,2]
[312250136,1705709441789,-3000.0,0.000288,3]
[312250139,1705709441799,-872.05925487,0.000289,2]
[312250141,1705709441809,-3572.64977096,0.000289,2]
[312250143,1705709441818,-154.86062544,0.00029,2]
[312250145,1705709441827,-54792.97642603,0.00029,2]
[312250147,1705709441837,-832.47642224,0.00029,2]
[312250149,1705709441846,-2036.31691242,0.00029,2]
[312250150,1705709441856,-1879.41245692,0.00029,2]
[312250152,1705709441865,-620.05111528,0.00029106,2]
[312250154,1705709441875,-206.8857815,0.00029178,2]
[312250157,1705709441885,-344.4101477,0.00029315,2]
[312250158,1705709441894,-199.0432224,0.00029315,2]
[312250160,1705709441904,-199.0432224,0.00029315,2]
[312250162,1705709441913,-82346.4378424,0.0002979,7]
[312250165,1705709441923,-1561.64177711,0.000299,2]
[312250167,1705709441932,-29944.40132639,0.0003,2]
[312250169,1705709441941,-30319.07639528,0.0003,2]
[312250171,1705709441952,-688.01285151,0.0003,4]
[312250173,1705709441961,-30479.54764278,0.0003,3]
[312250175,1705709441971,-464.33375401,0.0003,2]
[312250177,1705709441980,-682.3767278,0.0003,3]
[312250179,1705709441988,-2103.77243551,0.0003,4]
[312250181,1705709441997,-18583.86209402,0.0003,2]
[312250183,1705709442006,-699.75171641,0.0003,2]
[312250184,1705709442018,-189880.29954417,0.0003,30]
[312250187,1705709442032,-10202.84952288,0.0003,30]
[312250216,1705709442302,-154.86062544,0.00016441,2]
[312250218,1705709442310,-213.31905426,0.00016441,2]
[312250220,1705709442320,-594.84589351,0.00016441,2]
[312250222,1705709442329,-246.07285378,0.00016441,2]
[312250224,1705709442338,-1992.49793916,0.00016441,2]
[312250226,1705709442347,-500.0,0.00023288,2]
[312250228,1705709442356,-500.31715099,0.00023288,2]
[312250230,1705709442365,-463.78712928,0.00023288,2]
[312250232,1705709442376,-315.80057482,0.00023288,2]
[312250234,1705709442387,-500.0,0.00023288,2]
[312250236,1705709442397,-500.0,0.00023288,2]
[312250238,1705709442406,-500.0,0.00023288,2]
[312250240,1705709442415,-218.06748175,0.00023288,2]
[312250242,1705709442425,-170.93948884,0.00023288,2]
[312250244,1705709442435,-3368.7626028,0.00027397,3]
[312250321,1705709443149,-154.86062544,0.0001644,2]
[312250322,1705709443159,-1484.95053758,0.00027397,3]
[312250323,1705709443205,-367.58,0.00027397,3]
[312250396,1705709446297,-1091.3,0.00017677,2]
[312250715,1705709451005,1794.61060052,0.00016362,2]
[312250744,1705709557521,691.03954956,0.00016,5]
[312250745,1705709793986,2707.42562247,0.00016551,5]
[312250746,1705709813997,1155.55401904,0.00016549,5]
[312250747,1705709947701,250.0,0.00015533,2]
[312250752,1705710170072,1160.4071993,0.00015556,2]
[312250753,1705710203095,277.76241,0.00015428,2]
[312250754,1705710229610,24900.0,0.00015425,2]
[312250755,1705710237076,-329.3649862,0.00016418,2]
[312250756,1705710237104,-1992.49793916,0.00016418,2]
[312250757,1705710237131,-170.79924496,0.00016418,2]
[312250758,1705710237157,-9507.33782968,0.00016418,2]
[312250759,1705710237299,-12000.0,0.00016418,2]
[312250760,1705710237423,-12000.0,0.00016418,2]
[312250761,1705710237552,-3438.83761874,0.00016418,2]
[312250762,1705710237580,-191.31512244,0.00016418,2]
[312250763,1705710237606,-679.75558308,0.00016419,2]
[312250764,1705710237631,-242.99577859,0.00016419,2]
[312250765,1705710237657,-7447.09589715,0.00016419,2]
[312250766,1705710237728,-11447.99386168,0.00016419,2]
[312250767,1705710237754,-154.86062544,0.00016419,2]
[312250768,1705710237780,-397.14551288,0.00016419,2]
[312250769,1705710237834,-1181.37867726,0.00016419,2]
[312250770,1705710237872,-154.86062544,0.00016419,2]
[312250771,1705710237912,-711.43114331,0.00016419,2]
[312250772,1705710237948,-1241.8968664,0.00016419,2]
[312250773,1705710237986,-154.86062544,0.0001642,2]
[312250774,1705710238023,-616.42934825,0.0001642,2]
[312250775,1705710238059,-1293.1158294,0.0001642,2]
[312250776,1705710238098,-6646.0268845,0.0001642,2]
[312250777,1705710238238,-8566.36509916,0.0001642,2]
[312250778,1705710238275,-3433.63490084,0.0001642,2]
[312250779,1705710238319,-310.48239476,0.0001642,2]
[312250780,1705710238351,-594.84589351,0.00016421,2]
[312250781,1705710238383,-526.47495194,0.00016421,2]
[312250782,1705710238415,-588.02510206,0.00016421,2]
[312250783,1705710238448,-1252.74537918,0.00016421,2]
[312250784,1705710238480,-175.13584081,0.00016422,2]
[312250785,1705710238513,-154.86062544,0.00016422,2]
[312250786,1705710238545,-239.16358008,0.00016422,2]
[312250787,1705710238578,-154.86062544,0.00016422,2]
[312250788,1705710238610,-8003.40560678,0.00016422,2]
[312250789,1705710238762,-12000.0,0.00016422,2]
[312250790,1705710238817,-887.80162428,0.00016422,2]
[312250791,1705710238850,-166.58308548,0.00016423,2]
[312250792,1705710238886,-1602.24051039,0.00016423,2]
[312250793,1705710238920,-9343.37477985,0.00016423,2]
[312250794,1705710238973,-4369.74094999,0.00016423,2]
[312250795,1705710239000,-260.72897054,0.00016424,2]
[312250796,1705710239226,-1740.08077845,0.00016424,2]
[312250797,1705710239254,-156.87167711,0.00016424,2]
[312250798,1705710239282,-903.13044819,0.00016424,2]
[312250799,1705710239309,-4569.44717572,0.00016424,2]
[312250800,1705710239349,-12000.0,0.00016424,2]
[312250801,1705710239382,-3121.65031494,0.00016424,2]
[312250802,1705710239409,-163.04169151,0.00016425,2]
[312250803,1705710239436,-1468.00454349,0.00016425,2]
[312250804,1705710239463,-154.86062544,0.00016425,2]
[312250805,1705710239491,-7092.44282462,0.00016425,2]
[312250806,1705710239531,-12000.0,0.00016425,2]
[312250807,1705710239571,-1771.77506568,0.00016425,2]
[312250808,1705710239598,-8757.15684933,0.00016425,2]
[312250809,1705710239691,213.31905426,0.00016417,2]
[312250810,1705710240296,-12000.0,0.00016426,2]
[312250811,1705710240507,-7857.05526045,0.00016426,2]
[312250812,1705710240765,154.86062544,0.00016417,2]
[312250813,1705710241324,644.05484588,0.00016417,2]
[312250814,1705710242887,163.04169151,0.00016417,2]
[312250815,1705710249295,-1952.64798038,0.00016417,2]
[312250816,1705710249485,-39.84995878,0.00016417,2]
[312250817,1705710249866,1241.8968664,0.00016417,2]
[312250818,1705710250976,670.9011552,0.00016417,2]
[312250819,1705710251004,581.84422398,0.00016417,2]
[312250820,1705710251483,-166.58308548,0.00016428,2]
[312250821,1705710252628,566.87567779,0.00016417,2]
[312250822,1705710252655,733.45876327,0.00016417,2]
[312250823,1705710253093,-2443.78285454,0.00016417,2]
[312250824,1705710253121,-273.90202939,0.00016427,2]
[312250825,1705710253211,-55.46295681,0.00016427,2]
[312250826,1705710253561,213.31905426,0.00016427,2]
[312250827,1705710254120,190.53798281,0.00016427,2]
[312250828,1705710254191,661.19187942,0.00016427,2]
[312250829,1705710255115,679.75558308,0.00016427,2]
[312250831,1705710307354,-255.51439113,0.00016428,2]
[312250832,1705710307460,-5.21457941,0.00016428,2]
[312250833,1705710310381,255.51439113,0.00016428,2]
[312250834,1705710310414,255.51439113,0.00016428,2]
[312250835,1705710310444,15.44616968,0.00016428,2]
[312250836,1705710314603,-595.85046673,0.00016428,2]
[312250837,1705710314768,-12.16021361,0.00016428,2]
[312250838,1705710315222,154.86062544,0.00016428,2]
[312250839,1705710317150,154.86062544,0.00016428,2]
[312250840,1705710318033,-697.20252044,0.00016428,2]
[312250841,1705710318254,-14.22862287,0.00016428,2]
[312250842,1705710318506,154.86062544,0.00016428,2]
[312250843,1705710318653,528.11327213,0.00016428,2]
[312250844,1705710318681,66.73262138,0.00016428,2]
[312250845,1705710320965,154.86062544,0.00016428,2]
[312250846,1705710321229,239.16358008,0.00016428,2]
[312250847,1705710321817,234.38030848,0.00016428,2]
[312250848,1705710321845,234.38030848,0.00016428,2]
[312250849,1705710322175,-175.29422892,0.00016428,2]
[312250850,1705710322203,-154.98450155,0.00016429,2]
[312250851,1705710322232,-1338.45582899,0.00016448,2]
[312250852,1705710322307,-129.5487145,0.00016448,2]
[312250853,1705710322335,-1293.1158294,0.00016448,2]
[312250854,1705710324824,-1546.95370634,0.00016448,2]
[312250855,1705710325056,-31.5704838,0.00016448,2]
[312250856,1705710332353,-156.87167711,0.00016448,2]
[312250857,1705710332381,-663.02303788,0.00016448,2]
[312250858,1705710332561,-16.7325452,0.00016448,2]
[312250859,1705710333582,616.42934825,0.00016447,2]
[312250860,1705710333819,-174.41185099,0.00016449,2]
[312250861,1705710333848,-106.34832396,0.00016458,2]
[312250862,1705710333885,-180.14165048,0.00016458,2]
[312250863,1705710334406,100.61852447,0.00016448,2]
[312250864,1705710334435,280.76017495,0.00016448,2]
[312250865,1705710334464,280.76017495,0.00016448,2]
[312250866,1705710334493,280.76017495,0.00016448,2]
[312250867,1705710334525,280.76017495,0.00016448,2]
[312250868,1705710334555,18.23764213,0.00016448,2]
[312250869,1705710335097,154.86062544,0.00016447,2]
[312250870,1705710339553,1032.716341,0.00012406,2]
[312250871,1705710345588,-154.86062544,0.00016447,2]
[312250872,1705710345616,-160.15421126,0.00016448,2]
[312250873,1705710345710,-6.42887422,0.00016448,2]
[312250874,1705710352850,-858.42036861,0.00016447,2]
[312250875,1705710353150,-17.51878303,0.00016447,2]
[312250876,1705710399312,250.0,0.00015519,2]
[312250877,1705710401624,13759.2755042,0.00015519,2]
[312250878,1705710445611,-174.41185097,0.00016419,2]
[312250879,1705710445639,-11825.58814903,0.00016508,2]
[312250880,1705710445802,-7865.50934163,0.00016508,2]
[312250881,1705710447374,526.47495194,0.00016418,2]
[312250882,1705710447861,3608.01570643,0.00016508,2]